bitfinex/quotes_ETHUSD_20240621
["timestamp","ask_amount","ask_price","bid_price","bid_amount"]
[1718940996737,2.56356214,3513.7,3512.9,5.3402]
[1718940996980,2.56356214,3513.6,3512.9,5.3402]
[1718940997291,0.49300952,3513.5,3512.9,5.3402]
[1718940997596,0.49300952,3513.4,3512.9,5.3402]
[1718940997875,0.49300952,3513.8,3512.9,5.3402]
[1718940998177,2.56356584,3513.7,3512.9,5.3402]
[1718940998349,2.84259642,3513.6,3512.9,5.3402]
[1718940998534,0.49300952,3513.5,3512.9,5.3402]
[1718940998734,0.49300952,3513.4,3512.9,5.3402]
[1718940998968,0.49300952,3513.8,3512.9,5.3402]
[1718940999187,2.86228282,3513.7,3512.9,5.3402]
[1718940999478,2.07055835,3513.6,3512.9,5.3402]
[1718940999643,2.56357507,3513.6,3512.9,3.0]
[1718940999849,2.5636176,3513.5,3512.9,3.0]
[1718941000060,0.49301672,3513.4,3512.9,3.0]
[1718941000246,0.49301672,3513.3,3512.9,3.0]
[1718941000569,0.49301672,3513.6,3512.8,7.37]
[1718941000767,2.5636437,3513.5,3512.8,7.37]
[1718941000939,2.5636437,3513.4,3512.8,7.37]
[1718941001138,0.49301672,3513.3,3512.8,7.37]
[1718941001338,0.49301672,3513.5,3512.8,7.37]
[1718941001562,2.56364354,3513.4,3512.8,7.37]
[1718941001771,2.86125504,3513.3,3512.8,7.37]
[1718941001944,2.56364354,3513.2,3512.9,3.0]
[1718941002255,2.56364354,3513.1,3512.9,3.0]
[1718941002568,2.56370987,3513.0,3512.9,3.0]
[1718941002871,2.56370987,3513.0,3512.4,5.3588]
[1718941003166,2.56370987,3512.9,3512.4,5.3588]
[1718941003374,0.26302115,3513.2,3512.4,5.3588]
[1718941003375,2.56370987,3512.8,3512.4,5.3588]
[1718941003574,2.56370987,3512.7,3512.4,5.3588]
[1718941003772,2.56399853,3512.6,3512.4,5.3588]
[1718941004069,2.56403003,3512.5,3512.4,2.3588]
[1718941005374,2.56403003,3512.5,3512.0,3.0]
[1718941005561,2.07094698,3512.4,3512.1,2.3588]
[1718941005882,2.07094698,3512.3,3512.1,2.3588]
[1718941006172,0.97119719,3513.1,3512.0,3.0]
[1718941006173,2.56418029,3512.2,3512.0,3.0]
[1718941006336,2.56418029,3512.1,3512.0,3.0]
[1718941008238,0.49311392,3512.1,3512.0,3.0]
[1718941008438,0.49311392,3512.8,3512.0,3.0]
[1718941008675,2.07121449,3512.7,3511.8,2.3588]
[1718941009051,0.49315689,3512.6,3511.8,2.3588]
[1718941009369,2.07121449,3512.5,3511.8,2.3588]
[1718941009742,2.56437148,3512.4,3511.8,2.3588]
[1718941009941,2.56437148,3512.3,3511.8,2.3588]
[1718941010182,2.56437148,3512.2,3511.8,2.3588]
[1718941010343,2.56437148,3512.1,3511.8,2.3588]
[1718941010678,0.49315699,3512.0,3511.8,2.3588]
[1718941010981,0.294846,3512.7,3511.8,2.3588]
[1718941011162,2.07122987,3512.6,3511.8,2.3588]
[1718941011477,0.49315699,3512.5,3511.8,2.3588]
[1718941011778,2.07122987,3512.4,3511.8,2.3588]
[1718941012081,0.49315833,3512.3,3511.8,2.3588]
[1718941012278,2.07122987,3512.2,3511.8,2.3588]
[1718941012447,0.49315833,3512.1,3511.8,2.3588]
[1718941012993,0.294846,3512.7,3511.8,2.3588]
[1718941013282,2.07122479,3512.6,3511.8,2.3588]
[1718941013584,0.49315833,3512.5,3511.8,2.3588]
[1718941013779,2.07122479,3512.4,3511.8,2.3588]
[1718941013976,0.49315833,3512.3,3511.8,2.3588]
[1718941014273,2.07122479,3512.2,3511.8,2.3588]
[1718941014473,0.49315833,3512.1,3511.8,2.3588]
[1718941014683,0.294846,3512.7,3511.8,2.3588]
[1718941014882,2.0712279,3512.6,3511.8,2.3588]
[1718941015382,0.49315805,3512.5,3511.8,2.3588]
[1718941015585,2.0712279,3512.4,3511.8,2.3588]
[1718941015883,0.49315805,3512.3,3511.8,2.3588]
[1718941016375,0.878,3512.6,3511.8,2.3588]
[1718941016576,2.07122981,3512.5,3511.8,2.3588]
[1718941016892,2.56442157,3512.4,3511.8,2.3588]
[1718941017176,4.63565138,3512.3,3511.8,2.3588]
[1718941017384,2.56442157,3512.2,3511.8,2.3588]
[1718941017552,2.56442157,3512.1,3511.8,2.3588]
[1718941017752,2.56442157,3512.0,3511.8,2.3588]
[1718941017948,2.07126352,3511.9,3511.8,2.3588]
[1718941018195,2.07126579,3511.9,3511.8,2.3588]
[1718941018681,2.07126579,3512.5,3511.8,2.3588]
[1718941018978,2.56439608,3512.4,3511.8,2.3588]
[1718941019183,1.2901306,3512.6,3511.8,2.3588]
[1718941019184,4.63566187,3512.3,3511.8,2.3588]
[1718941019403,1.2901306,3512.6,3511.8,2.3588]
[1718941019404,2.56442595,3512.2,3511.8,2.3588]
[1718941019580,2.56442595,3512.1,3511.8,2.3588]
[1718941019775,2.56442595,3512.0,3511.8,2.3588]
[1718941019985,2.07126579,3511.9,3511.8,2.3588]
[1718941020476,2.07126579,3512.5,3511.8,2.3588]
[1718941020684,4.63565514,3512.4,3511.8,2.3588]
[1718941020883,2.07123215,3512.3,3511.8,2.3588]
[1718941021058,2.07126993,3512.2,3511.8,2.3588]
[1718941021247,0.878,3512.6,3511.8,2.3588]
[1718941021452,4.14250459,3512.5,3511.8,2.3588]
[1718941021653,4.63566432,3512.4,3511.8,2.3588]
[1718941021858,0.57469243,3512.5,3511.8,2.3588]
[1718941021859,4.63566432,3512.3,3511.8,2.3588]
[1718941022067,4.63566978,3512.2,3511.8,2.3588]
[1718941022265,2.56443608,3512.1,3511.8,2.3588]
[1718941022481,2.56443608,3512.0,3511.8,2.3588]
[1718941022664,2.56443608,3511.9,3511.8,2.3588]
[1718941023803,2.56445247,3511.9,3511.8,2.3588]
[1718941025479,2.12445247,3511.9,3511.8,2.98248]
[1718941025687,1.63128854,3511.9,3511.8,5.98248]
[1718941025992,0.49316393,3512.5,3511.8,6.86048]
[1718941026195,0.878,3512.2,3511.9,3.0]
[1718941026573,0.878,3512.2,3511.8,2.3588]
[1718941026574,2.07129581,3512.1,3511.8,2.3588]
[1718941026777,0.49318173,3512.0,3511.5,5.3422]
[1718941027071,0.49318173,3512.0,3511.6,1.037]
[1718941027391,0.878,3512.4,3511.6,1.037]
[1718941027598,2.07133839,3512.3,3511.6,1.037]
[1718941027776,0.49318173,3512.2,3511.6,1.037]
[1718941028095,2.07133839,3512.1,3511.6,1.037]
[1718941028400,0.49318173,3512.0,3511.6,1.037]
[1718941028605,0.49318173,3512.0,3511.7,1.37492]
[1718941028810,0.878,3512.4,3511.7,1.37492]
[1718941028978,2.07133333,3512.3,3511.7,1.37492]
[1718941029176,0.49318173,3512.2,3511.7,1.37492]
[1718941029496,2.07133333,3512.1,3511.7,1.37492]
[1718941029696,0.49318173,3512.0,3511.7,1.37492]
[1718941030005,0.49317941,3512.0,3511.7,1.37492]
[1718941030211,0.49317941,3512.3,3511.7,1.37492]
[1718941030416,2.56451112,3512.2,3511.7,1.37492]
[1718941030614,2.56451112,3512.1,3511.7,1.37492]
[1718941030776,2.56451112,3512.0,3511.7,1.37492]
[1718941031119,0.49317941,3511.9,3511.7,1.37492]
[1718941031322,0.49317941,3512.3,3511.7,1.37492]
[1718941031609,0.878,3512.1,3511.5,3.0]
[1718941031778,0.878,3511.9,3511.5,3.0]
[1718941031978,2.56452171,3511.8,3511.5,3.0]
[1718941032204,0.878,3511.9,3511.5,3.0]
[1718941032205,2.56452171,3511.7,3511.5,3.0]
[1718941032374,2.56452171,3511.6,3511.5,3.0]
[1718941032975,2.56461718,3511.6,3511.5,3.0]
[1718941035606,2.56461718,3511.6,3511.0,3.0]
[1718941035820,2.56461718,3511.6,3511.1,2.58346]
[1718941035821,2.0713423,3511.5,3511.1,2.58346]
[1718941036013,0.49328202,3511.4,3511.2,3.0]
[1718941036320,0.49328202,3511.4,3511.0,3.0]
[1718941036532,0.49328202,3511.8,3511.0,3.0]
[1718941036734,2.56504169,3511.7,3511.0,3.0]
[1718941036891,2.56504169,3511.6,3511.0,4.35546]
[1718941037090,2.56504169,3511.5,3510.9,3.878]
[1718941037322,2.56504169,3511.4,3510.9,3.878]
[1718941037634,0.49328202,3511.3,3510.9,3.878]
[1718941037810,0.49328202,3511.8,3511.0,0.61846]
[1718941037984,2.07175635,3511.7,3511.0,0.61846]
[1718941038200,0.49328202,3511.6,3511.0,0.61846]
[1718941038402,2.07175635,3511.5,3511.0,0.61846]
[1718941038717,0.49328202,3511.4,3511.0,0.61846]
[1718941039102,0.49328202,3511.9,3511.1,0.40598358]
[1718941039304,2.07174052,3511.8,3510.9,3.878]
[1718941039536,0.49328118,3511.7,3510.9,3.878]
[1718941039719,2.07174052,3511.6,3511.0,0.61846]
[1718941040046,0.49328118,3511.5,3511.0,0.61846]
[1718941040221,2.07174052,3511.4,3511.0,0.61846]
[1718941040409,0.49328808,3511.3,3511.0,0.61846]
[1718941041103,0.49328808,3511.9,3511.0,0.61846]
[1718941041306,2.07173089,3511.8,3511.0,0.61846]
[1718941041516,0.49328808,3511.7,3511.0,0.61846]
[1718941041729,2.07173089,3511.6,3511.1,0.680306]
[1718941041912,2.48688701,3513.6,3511.1,0.680306]
[1718941041913,2.4131,3512.9,3511.2,2.4094]
[1718941042217,6.10771495,3514.1,3512.6,0.878]
[1718941042218,2.4131,3513.3,3512.6,0.878]
[1718941042560,2.4131,3513.3,3512.2,2.4094]
[1718941042561,0.49311441,3513.2,3512.3,10.37]
[1718941042702,0.49311441,3513.2,3512.7,0.878]
[1718941043423,0.49311441,3513.2,3512.3,10.37]
[1718941043626,0.49311441,3513.2,3512.3,11.85844]
[1718941045206,0.49307356,3513.2,3512.3,11.85844]
[1718941045550,2.07089533,3513.1,3512.3,11.85844]
[1718941045754,0.49307356,3513.0,3512.3,11.85844]
[1718941045947,2.07089533,3512.9,3512.3,11.85844]
[1718941046131,0.49307356,3512.8,3512.4,1.426784]
[1718941046462,2.07089533,3512.7,3512.4,1.426784]
[1718941046614,2.07089533,3512.6,3512.5,1.4206184]
[1718941047156,2.3031,3513.7,3512.5,1.4206184]
[1718941047315,2.56377205,3513.6,3512.6,2.31]
[1718941047516,2.56377205,3513.5,3512.6,2.31]
[1718941047766,2.56377205,3513.4,3512.7,0.88356184]
[1718941047939,2.56377205,3513.3,3512.7,3.88356184]
[1718941048144,2.07054635,3513.2,3512.7,3.88356184]
[1718941048348,2.07054648,3513.1,3512.8,1.06141802]
[1718941048533,2.07054648,3513.0,3512.8,1.07661583]
[1718941048861,2.3162,3514.1,3512.8,1.07661583]
[1718941048862,0.43103618,3514.0,3512.8,0.01519781]
[1718941049079,2.07057941,3513.9,3512.8,0.01519781]
[1718941049269,0.49299509,3513.8,3512.8,0.01519781]
[1718941049419,2.07057941,3513.7,3512.8,0.01519781]
[1718941049751,0.49299509,3513.6,3512.8,0.01519781]
[1718941049955,2.07057941,3513.5,3512.8,0.68977943]
[1718941050152,0.49299509,3513.4,3512.8,0.68977943]
[1718941050351,2.07057941,3513.3,3512.8,0.68977943]
[1718941050860,2.07057941,3513.2,3512.8,0.68977943]
[1718941051022,0.43103618,3514.0,3512.8,0.01519781]
[1718941051421,2.07052767,3513.9,3512.8,0.01519781]
[1718941051621,0.49298278,3513.8,3512.8,0.01519781]
[1718941051818,2.07052767,3513.7,3512.6,5.31]
[1718941052019,0.49298278,3513.6,3512.7,0.88356184]
[1718941052260,2.07052767,3513.5,3512.7,3.88356184]
[1718941052646,2.07052767,3513.4,3512.7,3.88356184]
[1718941052856,2.07052767,3513.3,3512.8,0.76141802]
[1718941053052,0.43103618,3514.0,3512.8,0.76141802]
[1718941053258,2.07054592,3513.9,3512.7,3.0]
[1718941053463,0.49298691,3513.8,3512.6,5.31]
[1718941053628,2.07054592,3513.7,3512.6,5.31]
[1718941053963,0.49298691,3513.6,3512.7,0.88356184]
[1718941054270,0.49298691,3513.6,3512.7,3.88356184]
[1718941054271,2.07054592,3513.5,3512.7,3.88356184]
[1718941054450,0.43103618,3514.0,3512.7,3.88356184]
[1718941054451,2.070551,3513.4,3512.7,3.88356184]
[1718941054622,0.43103618,3514.0,3512.7,3.88356184]
[1718941054623,2.070551,3513.3,3512.7,3.88356184]
[1718941054832,0.47413979,3513.9,3512.7,3.88356184]
[1718941055125,2.07055125,3513.8,3512.7,3.88356184]
[1718941055329,0.49298839,3513.7,3512.7,3.88356184]
[1718941055628,2.07055125,3513.6,3512.8,0.76141802]
[1718941055824,0.49298839,3513.5,3512.8,0.76141802]
[1718941056028,2.07055125,3513.4,3512.8,0.76141802]
[1718941056466,2.07055125,3513.3,3512.7,3.0]
[1718941056662,2.56360828,3513.2,3512.4,3.0]
[1718941056875,2.56360828,3513.1,3512.4,3.0]
[1718941057039,2.07055125,3513.0,3512.1,2.3105]
[1718941057240,2.56360828,3513.0,3512.1,2.84155]
[1718941057567,2.07106581,3512.9,3512.2,3.0]
[1718941057865,0.235,3513.4,3512.2,3.0]
[1718941057866,2.35,3512.7,3512.2,3.0]
[1718941058066,2.07118669,3512.6,3511.8,3.0]
[1718941058366,2.07118669,3512.6,3511.7,7.37]
[1718941058367,0.49318302,3512.5,3511.7,7.37]
[1718941058665,2.07143201,3512.4,3511.7,7.37]
[1718941058860,0.49319809,3512.3,3511.7,7.37]
[1718941059067,2.07143201,3512.2,3511.7,7.37]
[1718941059431,2.07143201,3512.1,3511.7,7.37]
[1718941059761,2.07143201,3512.0,3511.7,7.37]
[1718941060056,2.07141825,3511.9,3511.7,7.37]
[1718941060363,0.49143697,3512.5,3511.7,7.37]
[1718941060572,2.07149327,3512.4,3511.7,7.37]
[1718941060777,0.49321268,3512.3,3511.7,7.37]
[1718941060976,2.07149327,3512.2,3511.7,7.37]
[1718941061149,0.49321268,3512.1,3511.7,7.37]
[1718941061472,2.07149327,3512.0,3511.8,3.0]
[1718941061993,2.07149327,3511.9,3511.8,3.0]
[1718941062472,2.07149327,3511.9,3511.3,3.0]
[1718941062473,0.20714933,3511.9,3511.3,3.0]
[1718941062655,2.07149327,3511.8,3511.3,3.0]
[1718941062855,0.49324422,3511.7,3511.3,3.0]
[1718941063162,0.49324422,3511.7,3511.0,3.0]
[1718941063163,2.07149327,3511.6,3511.0,3.0]
[1718941063539,2.07176218,3511.5,3511.0,3.0]
[1718941063779,2.07176218,3511.4,3511.0,4.27867]
[1718941064071,2.4048,3512.0,3511.0,3.0]
[1718941064288,3.33543805,3511.9,3511.0,3.0]
[1718941064445,2.56503802,3511.8,3511.0,3.0]
[1718941064639,4.28103802,3511.7,3511.0,3.0]
[1718941064984,3.76358923,3511.6,3510.7,3.0]
[1718941065184,2.56503802,3511.5,3510.7,3.0]
[1718941065380,2.56503802,3511.4,3510.7,3.0]
[1718941065593,2.07176148,3511.3,3510.8,2.265]
[1718941065748,2.07176148,3511.2,3510.8,2.265]
[1718941065947,1.716,3511.7,3510.8,2.265]
[1718941066174,2.8421586,3511.6,3510.8,2.265]
[1718941066371,2.56521975,3511.5,3510.8,2.265]
[1718941066678,1.716,3511.7,3510.8,2.265]
[1718941066679,2.07191392,3511.4,3510.8,2.265]
[1718941066864,2.07191392,3511.3,3510.8,2.265]
[1718941067071,1.716,3511.7,3510.8,2.265]
[1718941067271,2.84198819,3511.6,3510.8,2.265]
[1718941067456,2.56521904,3511.5,3510.8,2.265]
[1718941067658,2.4048,3512.0,3510.9,1.2635]
[1718941067659,2.07190769,3511.4,3510.9,1.2635]
[1718941067855,2.4048,3512.0,3511.0,0.65285]
[1718941068151,3.33519041,3511.9,3511.0,0.65285]
[1718941068372,3.33519041,3511.8,3511.0,0.65285]
[1718941068544,3.33519041,3511.7,3511.0,0.65285]
[1718941068746,2.56509961,3511.6,3511.0,0.65285]
[1718941069043,2.07181123,3511.5,3511.0,0.65285]
[1718941069268,2.07181123,3511.4,3511.0,0.65285]
[1718941069582,2.4048,3512.0,3511.0,0.65285]
[1718941069782,3.33526304,3511.9,3511.0,0.65285]
[1718941069988,3.33526286,3511.8,3511.0,0.65285]
[1718941070288,2.56507182,3511.7,3511.0,0.65285]
[1718941070446,2.56507182,3511.6,3511.0,0.65285]
[1718941070652,2.07178893,3511.5,3511.0,0.65285]
[1718941070857,2.64528,3512.0,3510.9,4.2635]
[1718941071055,3.33531786,3511.9,3510.9,4.2635]
[1718941071260,3.33531786,3511.8,3510.9,4.2635]
[1718941071472,3.33531786,3511.7,3510.9,4.2635]
[1718941071683,2.56511866,3511.6,3510.9,4.2635]
[1718941071850,2.07182661,3511.5,3510.9,4.2635]
[1718941072184,2.07182661,3511.4,3510.9,3.0]
[1718941072361,0.264528,3511.9,3510.8,2.265]
[1718941072688,2.8419754,3511.8,3510.8,2.265]
[1718941072856,3.33527132,3511.7,3510.8,2.265]
[1718941073174,0.264528,3511.9,3510.8,2.265]
[1718941073479,2.84196401,3511.8,3510.8,2.265]
[1718941073682,2.56513866,3511.7,3510.8,2.265]
[1718941073848,2.4048,3512.0,3510.8,2.265]
[1718941073849,2.56513866,3511.6,3510.9,1.2635]
[1718941074183,2.07182381,3511.5,3510.9,4.2635]
[1718941074396,2.4048,3512.0,3510.9,4.2635]
[1718941074549,0.77009251,3511.9,3510.9,4.2635]
[1718941074751,2.07183681,3511.8,3511.0,0.65285]
[1718941075051,1.26339184,3511.7,3511.0,0.65285]
[1718941075251,2.07183681,3511.6,3511.0,0.65285]
[1718941075798,2.07183681,3511.5,3511.0,0.65285]
[1718941076090,2.07189564,3511.4,3510.9,3.0]
[1718941076246,2.4048,3512.0,3510.8,2.265]
[1718941076582,3.33530209,3511.9,3510.9,1.2635]
[1718941076780,3.33530209,3511.8,3510.9,4.2635]
[1718941076972,2.56520228,3511.7,3510.9,4.2635]
[1718941077172,2.56520228,3511.6,3510.9,4.2635]
[1718941077373,2.07189415,3511.5,3510.9,4.2635]
[1718941077573,2.64528,3512.0,3510.9,4.2635]
[1718941077773,3.3351972,3511.9,3510.9,4.2635]
[1718941077969,3.3351972,3511.8,3510.9,4.2635]
[1718941078174,2.56515428,3511.7,3510.9,4.2635]
[1718941078480,2.56515428,3511.6,3510.9,4.2635]
[1718941078676,2.56515428,3511.5,3510.9,4.2635]
[1718941078877,2.64528,3512.0,3510.9,4.2635]
[1718941079194,2.84188965,3511.9,3510.9,4.2635]
[1718941079374,3.33522893,3511.8,3510.9,4.2635]
[1718941079606,2.56518021,3511.7,3510.9,5.1415]
[1718941079810,2.56518021,3511.6,3511.0,0.74065]
[1718941079982,2.56518021,3511.5,3511.0,0.74065]
[1718941080181,0.878,3511.9,3511.0,0.74065]
[1718941080383,2.84192398,3511.8,3511.0,0.74065]
[1718941080580,2.56516843,3511.7,3511.0,0.74065]
[1718941080817,2.56516843,3511.6,3511.0,0.74065]
[1718941081036,2.56516843,3511.5,3511.0,0.74065]
[1718941081203,0.878,3511.9,3511.0,0.74065]
[1718941081405,2.84193951,3511.8,3510.9,5.1415]
[1718941081605,2.07187734,3511.7,3510.9,3.0]
[1718941081933,2.56518128,3511.6,3510.7,3.878]
[1718941082084,2.56518128,3511.5,3510.9,0.878]
[1718941082284,1.716,3511.8,3510.9,0.878]
[1718941082285,0.49330394,3511.4,3510.9,0.878]
[1718941082512,2.20930394,3511.8,3510.9,0.878]
[1718941082698,2.07182235,3511.7,3510.9,0.878]
[1718941082901,0.49330394,3511.6,3510.9,2.0028]
[1718941083094,0.49330394,3511.6,3511.1,0.878]
[1718941083341,0.49330394,3512.2,3511.3,0.878]
[1718941083511,2.07154358,3512.1,3511.5,0.878]
[1718941083719,0.49330394,3512.0,3511.5,0.878]
[1718941083921,2.4958,3512.4,3511.5,0.878]
[1718941083922,0.49330394,3512.3,3511.5,0.878]
[1718941084114,2.07149744,3512.2,3511.5,0.878]
[1718941084447,0.49330394,3512.1,3511.7,0.878]
[1718941084629,0.49319059,3512.1,3511.7,3.878]
[1718941084798,0.49319059,3512.6,3511.7,3.878]
[1718941084994,2.07134006,3512.5,3511.7,3.878]
[1718941085232,0.49319059,3512.4,3511.7,3.878]
[1718941085440,2.07134006,3512.3,3511.7,3.75743688]
[1718941085654,0.49319059,3512.2,3511.7,3.75743688]
[1718941085955,2.20719059,3512.7,3511.7,3.75743688]
[1718941086102,2.20719059,3512.7,3511.8,0.3468226]
[1718941086103,2.07122984,3512.6,3511.8,0.3468226]
[1718941086427,0.49319059,3512.5,3511.8,0.3468226]
[1718941086940,0.49319059,3512.9,3511.8,0.3468226]
[1718941087093,3.33491887,3512.8,3511.8,0.3468226]
[1718941087299,2.56439706,3512.7,3511.9,0.63630595]
[1718941087499,2.56439706,3512.6,3511.9,0.63630595]
[1718941087700,2.11572,3513.0,3511.9,0.63630595]
[1718941087999,3.77690125,3512.9,3511.8,0.3468226]
[1718941088346,3.33500809,3512.8,3511.8,0.3468226]
[1718941088496,2.56435348,3512.7,3511.8,0.3468226]
[1718941088700,2.56435348,3512.6,3511.8,0.3468226]
[1718941088933,2.56431472,3512.5,3511.9,0.63630595]
[1718941089114,0.49313744,3512.4,3511.8,0.3468226]
[1718941089307,0.49313744,3512.8,3511.8,0.3468226]
[1718941089519,2.07118743,3512.7,3511.8,0.3468226]
[1718941089745,0.49313744,3512.6,3511.8,0.3468226]
[1718941090044,2.07118743,3512.5,3511.9,0.63630595]
[1718941090199,0.49313744,3512.4,3511.9,0.63630595]
[1718941090400,0.49313744,3512.4,3512.0,2.4347]
[1718941090724,0.49313744,3513.2,3512.0,2.4347]
[1718941091040,2.84171203,3513.1,3512.1,0.6071006]
[1718941091241,2.56411499,3513.0,3512.1,3.6071006]
[1718941091397,2.56411499,3512.9,3512.2,0.96781066]
[1718941091601,1.8854,3513.3,3512.2,0.96781066]
[1718941091602,2.56411499,3512.8,3512.2,0.96781066]
[1718941091838,0.49309903,3512.7,3512.2,0.96781066]
[1718941092015,0.49309903,3513.2,3512.3,0.64025107]
[1718941092355,2.8421616,3513.1,3512.3,0.64025107]
[1718941092551,2.23107848,3513.0,3512.1,3.0]
[1718941092835,2.23107848,3513.0,3512.0,2.4347]
[1718941092836,2.07097945,3512.9,3512.0,2.4347]
[1718941093047,2.07097945,3512.8,3512.0,2.4347]
[1718941093342,2.07101407,3512.7,3512.0,2.4347]
[1718941093552,2.3032,3513.0,3512.0,3.26451369]
[1718941093709,2.07101347,3512.9,3512.1,3.0]
[1718941093910,2.07098708,3512.8,3512.2,0.62645137]
[1718941094220,4.47244943,3513.3,3512.2,0.62645137]
[1718941094221,4.30104943,3513.3,3512.2,0.62645137]
[1718941094421,2.84224236,3513.2,3512.2,0.62645137]
[1718941094743,2.84224236,3513.1,3512.1,3.0]
[1718941095040,2.07099156,3513.0,3512.1,3.0]
[1718941095220,2.07099156,3512.9,3512.1,3.0]
[1718941095539,2.07099156,3512.8,3512.2,1.36345137]
[1718941095730,2.07099156,3512.7,3512.2,1.36345137]
[1718941095937,4.73115437,3513.3,3512.2,1.36345137]
[1718941096104,2.84233466,3513.2,3512.1,3.0]
[1718941096446,2.84233466,3513.2,3512.0,2.4347]
[1718941096447,2.84233466,3513.1,3512.0,5.4347]
[1718941096639,2.84233466,3513.0,3512.0,5.4347]
[1718941096842,2.84233466,3512.9,3512.0,5.4347]
[1718941097168,2.84256065,3512.8,3512.0,5.4347]
[1718941097444,2.84256065,3512.7,3512.0,5.4347]
[1718941097663,2.84256065,3512.6,3512.0,5.4347]
[1718941097859,2.07122395,3512.5,3512.1,1.28047]
[1718941098003,4.30104943,3513.3,3512.1,4.28047]
[1718941098202,2.84244671,3513.2,3512.1,4.28047]
[1718941098470,2.07107058,3513.1,3512.3,2.3071]
[1718941098645,2.07107058,3513.0,3512.4,2.456]
[1718941098855,3.993,3514.0,3512.4,2.456]
[1718941099047,3.993,3514.0,3512.6,2.456]
[1718941099048,2.84169786,3513.9,3512.6,2.456]
[1718941099252,2.84169786,3513.8,3512.6,2.456]
[1718941099579,2.84169786,3513.7,3512.6,5.456]
[1718941099874,2.84169786,3513.6,3512.7,0.61424517]
[1718941100174,2.84169733,3513.5,3512.8,2.456]
[1718941100464,2.07062873,3513.4,3512.8,5.456]
[1718941100769,4.0677,3514.4,3513.0,2.456]
[1718941100945,2.84216411,3514.3,3513.0,5.456]
[1718941101133,2.84216411,3514.2,3513.2,2.456]
[1718941101470,0.29000712,3514.5,3513.2,5.456]
[1718941101471,2.07042643,3514.1,3513.2,5.456]
[1718941101636,2.07042643,3514.0,3513.3,0.63029025]
[1718941101835,2.07042643,3513.9,3513.3,3.63029025]
[1718941102043,2.07042643,3513.8,3513.3,3.63029025]
[1718941102254,1.94937,3514.6,3513.3,3.63029025]
[1718941102579,3.33527462,3514.5,3513.3,3.63029025]
[1718941102742,2.84235583,3514.4,3513.3,3.63029025]
[1718941102932,1.94937,3514.6,3513.4,0.66938554]
[1718941102933,1.26502313,3514.3,3513.4,0.66938554]
[1718941103153,2.842376,3514.2,3513.4,0.66938554]
[1718941103352,2.3537,3514.7,3513.5,2.456]
[1718941103531,3.33523789,3514.6,3513.5,5.456]
[1718941103870,3.33523789,3514.5,3513.5,5.456]
[1718941104030,3.33522778,3514.4,3513.6,0.61253855]
[1718941104236,2.56310647,3514.3,3513.6,3.61253855]
[1718941104477,2.56310479,3514.2,3513.6,3.61253855]
[1718941104710,2.07020955,3514.1,3513.6,3.61253855]
[1718941104843,0.40677,3514.6,3513.6,3.0]
[1718941105038,2.84240082,3514.5,3513.5,2.456]
[1718941105347,2.56309382,3514.4,3513.5,3.0016]
[1718941105547,2.56309382,3514.3,3513.6,3.0]
[1718941105755,2.07018883,3514.2,3513.6,3.0]
[1718941105981,0.40677,3514.6,3513.6,3.0]
[1718941106183,2.07013678,3514.5,3513.6,3.0]
[1718941106385,0.4928897,3514.4,3513.6,3.0]
[1718941106588,2.07013678,3514.3,3513.6,3.0]
[1718941107055,0.40677,3514.6,3513.6,3.0]
[1718941107255,2.07015064,3514.5,3513.6,4.33716]
[1718941107459,0.49289229,3514.4,3513.6,4.33716]
[1718941107983,0.4928717,3514.6,3513.6,4.33716]
[1718941108162,2.07006083,3514.5,3513.6,4.33716]
[1718941108363,1.714,3514.9,3513.7,0.733876]
[1718941108564,2.07005882,3514.8,3513.7,0.733876]
[1718941108764,0.49287114,3514.7,3513.7,0.733876]
[1718941108964,2.07005882,3514.6,3513.7,0.733876]
[1718941109186,1.714,3514.9,3513.8,0.8072636]
[1718941109352,2.07006002,3514.8,3513.8,0.8072636]
[1718941109552,0.49287143,3514.7,3513.8,0.8072636]
[1718941109751,2.07006002,3514.6,3513.8,0.8072636]
[1718941109990,0.49287143,3514.5,3513.8,0.8072636]
[1718941110177,0.49287143,3514.5,3513.9,0.51444236]
[1718941110362,1.714,3514.9,3513.9,0.51444236]
[1718941110363,0.49287143,3514.9,3514.0,2.456]
[1718941110562,2.20687143,3515.2,3514.0,5.456]
[1718941110792,2.06988866,3515.1,3514.0,5.456]
[1718941111006,0.49287143,3515.0,3514.0,5.456]
[1718941111211,0.49287143,3515.0,3514.0,7.00064424]
[1718941111414,2.20687143,3515.2,3514.0,7.00064424]
[1718941111581,2.06984672,3515.1,3514.0,7.00064424]
[1718941111783,0.49287143,3515.0,3514.0,7.00064424]
[1718941112304,0.49283134,3515.1,3514.0,7.00064424]
[1718941112509,2.06990955,3515.0,3514.0,7.00064424]
[1718941112806,0.49283134,3514.9,3514.0,7.00064424]
[1718941113108,2.47005313,3515.2,3514.0,7.00064424]
[1718941113276,2.5627446,3515.1,3514.0,7.00064424]
[1718941113492,2.5627446,3515.0,3514.0,7.00064424]
[1718941113676,0.49283566,3514.9,3514.1,0.75150866]
[1718941113991,0.49283566,3515.2,3514.1,3.75150866]
[1718941114175,2.0698697,3515.1,3514.1,3.75150866]
[1718941114375,0.49283566,3515.0,3514.2,0.82665953]
[1718941114900,0.49283566,3515.2,3514.2,0.82665953]
[1718941115102,2.06986883,3515.1,3514.2,0.82665953]
[1718941115421,2.64326559,3515.3,3514.2,0.82665953]
[1718941115592,2.56269749,3515.2,3514.2,0.82665953]
[1718941115905,2.56269749,3515.1,3514.2,0.82665953]
[1718941116103,0.49282586,3515.0,3514.2,0.82665953]
[1718941116305,0.49282586,3515.2,3514.2,0.82665953]
[1718941116494,2.06987149,3515.1,3514.2,0.82665953]
[1718941116676,0.49282586,3515.0,3514.3,0.78273038]
[1718941117076,0.49282586,3515.2,3514.3,0.78273038]
[1718941117303,2.06987786,3515.1,3514.3,0.78273038]
[1718941117605,2.06987786,3515.1,3514.1,3.0]
[1718941117606,0.49282586,3515.0,3514.1,3.0]
[1718941118082,3.78391266,3514.9,3514.1,3.0]